lending/lending_fUSD_20250408
["ID","MTS","AMOUNT","RATE_DAILY","PERIOD"]
[357530822,1744131080273,-500.0,0.00027671,2]
[357530823,1744131080286,-512.0353687,0.00027671,2]
[357530824,1744131080295,-763.62,0.00027671,2]
[357530825,1744131080304,-500.0,0.00027671,2]
[357530826,1744131080313,-745.57,0.00027671,2]
[357530827,1744131080322,-500.0,0.00027671,2]
[357530828,1744131080332,-1043.21,0.00027671,2]
[357530829,1744131080341,-812.8,0.00027671,2]
[357530830,1744131080350,-500.0,0.00027671,2]
[357530831,1744131080359,-500.0,0.00027671,2]
[357530832,1744131080369,-500.0,0.00027671,2]
[357530833,1744131080379,-500.0,0.00027671,2]
[357530834,1744131080389,-500.0,0.00027671,2]
[357530835,1744131080398,-568.5304342,0.00027671,2]
[357530836,1744131080408,-836.32,0.00027671,2]
[357530837,1744131080418,-813.0,0.00027671,2]
[357530838,1744131080427,-500.0,0.00027671,2]
[357530839,1744131080437,-500.0,0.00027671,2]
[357530840,1744131080446,-500.0,0.00027671,2]
[357530841,1744131080456,-500.0,0.00027671,2]
[357530842,1744131080465,-500.0,0.00027671,2]
[357530843,1744131080474,-684.15,0.00027671,2]
[357530844,1744131080484,-1564.46,0.00027671,2]
[357530845,1744131080493,-984.76,0.00027671,2]
[357530846,1744131080504,-500.0,0.00027671,2]
[357530847,1744131080514,-615.97,0.00027671,2]
[357530848,1744131080523,-500.0,0.00027671,2]
[357530849,1744131080540,-630.49,0.00027671,2]
[357530850,1744131080549,-780.29,0.00027671,2]
[357530851,1744131080560,-500.0,0.00027671,2]
[357530852,1744131080570,-794.86,0.00027671,2]
[357530853,1744131080581,-6319.24,0.00027671,2]
[357530854,1744131080591,-537.52786046,0.00027671,2]
[357530855,1744131080601,-918.03,0.00027671,2]
[357530856,1744131080610,-929.59,0.00027671,2]
[357530857,1744131080620,-649.48542389,0.00027671,2]
[357530858,1744131080629,-1679.19,0.00027671,2]
[357530859,1744131080639,-660.39,0.00027671,2]
[357530860,1744131080648,-500.0,0.00027671,2]
[357530861,1744131080658,-500.0,0.00027671,2]
[357530862,1744131080668,-500.0,0.00027671,2]
[357530863,1744131080677,-639.27,0.00027671,2]
[357530864,1744131080687,-500.0,0.00027671,2]
[357530865,1744131080697,-500.0,0.00027671,2]
[357530866,1744131080707,-500.0,0.00027671,2]
[357530867,1744131080716,-500.0,0.00027671,2]
[357530868,1744131080726,-725.42,0.00027671,2]
[357530869,1744131080735,-500.0,0.00027671,2]
[357530870,1744131080745,-751.14,0.00027671,2]
[357530871,1744131080755,-500.0,0.00027671,2]
[357530872,1744131080764,-500.0,0.00027671,2]
[357530873,1744131080773,-479.2687787,0.00027671,2]
[357530874,1744131080787,-500.0,0.00027671,2]
[357530875,1744131080797,-1183.67,0.00027671,2]
[357530876,1744131080807,-964.81,0.00027671,2]
[357530877,1744131080816,-1092.38,0.00027671,2]
[357530878,1744131080826,-500.0,0.00027671,2]
[357530879,1744131080838,-297.9882944,0.00027671,2]
[357530880,1744131080848,-536.4679616,0.00027671,2]
[357530881,1744131080857,-872.95,0.00027671,2]
[357530882,1744131080869,-500.0,0.00027673,5]
[357530883,1744131080879,-9685.07318206,0.00027693,2]
[357530884,1744131080888,-377.39,0.00027707,2]
[357530885,1744131080898,-2900.0,0.000278,10]
[357530886,1744131080907,-154.32081203,0.00027825,2]
[357530887,1744131080917,-3600.0,0.000279,10]
[357530888,1744131080928,-816.73580388,0.00027919,2]
[357530889,1744131080937,-540.28317374,0.00027935,2]
[357530890,1744131080946,-150.0,0.00027944,2]
[357530891,1744131080958,-500.0,0.00027944,2]
[357530892,1744131080967,-500.0,0.00027944,2]
[357530893,1744131080984,-698.53,0.00027944,2]
[357530894,1744131080993,-698.53,0.00027944,2]
[357530895,1744131081004,-500.0,0.00027944,2]
[357530896,1744131081013,-500.0,0.00027944,2]
[357530897,1744131081023,-500.0,0.00027944,2]
[357530898,1744131081034,-500.0,0.00027944,2]
[357530899,1744131081044,-500.0,0.00027944,2]
[357530900,1744131081054,-500.0,0.00027944,2]
[357530901,1744131081064,-500.0,0.00027945,2]
[357530902,1744131081073,-156.62990695,0.00027945,2]
[357530903,1744131081084,-632.287656,0.00027945,2]
[357530904,1744131081094,-662.496625,0.00027945,2]
[357530905,1744131081105,-500.0,0.00027945,2]
[357530906,1744131081115,-500.0,0.00027945,2]
[357530907,1744131081126,-500.0,0.00027945,2]
[357530908,1744131081137,-500.0,0.00027945,2]
[357530909,1744131081146,-500.0,0.00027945,2]
[357530910,1744131081156,-500.0,0.00027945,2]
[357530911,1744131081166,-435.11811724,0.00027945,2]
[357530912,1744131081176,-500.0,0.00027945,2]
[357530913,1744131081185,-500.0,0.00027945,2]
[357530914,1744131081195,-501.19264673,0.00027945,2]
[357530915,1744131081204,-565.07240717,0.00027945,2]
[357530916,1744131081214,-500.0,0.00027945,2]
[357530917,1744131081224,-500.0,0.00027945,2]
[357530918,1744131081233,-504.48296709,0.00027945,2]
[357530919,1744131081242,-500.0,0.00027945,2]
[357530920,1744131081252,-521.99,0.00027945,2]
[357530921,1744131081261,-1012.34,0.00027945,2]
[357530922,1744131081270,-500.0,0.00027945,2]
[357530923,1744131081283,-500.0,0.00027945,2]
[357530924,1744131081293,-497.77841735,0.00027945,2]
[357530925,1744131081303,-500.0,0.00027945,2]
[357530926,1744131081312,-500.0,0.00027945,2]
[357530927,1744131081322,-500.0,0.00027945,2]
[357530928,1744131081332,-500.0,0.00027945,2]
[357530929,1744131081342,-514.42943001,0.00027945,2]
[357530930,1744131081351,-500.0,0.00027945,2]
[357530931,1744131081361,-1008.75,0.00027945,2]
[357530932,1744131081371,-511.42024765,0.00027945,2]
[357530933,1744131081380,-500.0,0.00027945,2]
[357530934,1744131081390,-244.82615131,0.00027945,2]
[357530935,1744131081400,-500.0,0.00027945,2]
[357530936,1744131081409,-572.69,0.00027945,2]
[357530937,1744131081418,-500.0,0.00027945,2]
[357530938,1744131081429,-938.36,0.00027945,2]
[357530939,1744131081438,-500.0,0.00027945,2]
[357530940,1744131081448,-500.0,0.00027945,2]
[357530941,1744131081458,-500.0,0.00027945,2]
[357530942,1744131081468,-500.0,0.00027945,2]
[357530943,1744131081478,-799.85,0.00027945,2]
[357530944,1744131081488,-500.0,0.00027945,2]
[357530945,1744131081497,-526.29041267,0.00027945,2]
[357530946,1744131081507,-500.0,0.00027945,2]
[357530947,1744131081517,-500.0,0.00027945,2]
[357530948,1744131081529,-500.0,0.00027945,2]
[357530949,1744131081538,-500.0,0.00027945,2]
[357530950,1744131081547,-500.0,0.00027945,2]
[357530951,1744131081556,-500.0,0.00027945,2]
[357530952,1744131081566,-500.0,0.00027945,2]
[357530953,1744131081575,-500.0,0.00027945,2]
[357530954,1744131081585,-550.53368231,0.00027945,2]
[357530955,1744131081594,-500.0,0.00027945,2]
[357530956,1744131081603,-500.0,0.00027945,2]
[357530957,1744131081613,-500.0,0.00027945,2]
[357530958,1744131081622,-500.0,0.00027945,2]
[357530959,1744131081631,-500.0,0.00027945,2]
[357530960,1744131081640,-936.4,0.00027945,2]
[357530961,1744131081650,-500.0,0.00027945,2]
[357530962,1744131081659,-500.0,0.00027945,2]
[357530963,1744131081668,-500.0,0.00027945,2]
[357530964,1744131081678,-500.0,0.00027945,2]
[357530965,1744131081687,-736.0,0.00027945,2]
[357530966,1744131081696,-500.0,0.00027945,2]
[357530967,1744131081705,-500.0,0.00027945,2]
[357530968,1744131081714,-500.0,0.00027945,2]
[357530969,1744131081724,-235.20221605,0.00027945,2]
[357530970,1744131081733,-550.93,0.00027945,2]
[357530971,1744131081742,-500.0,0.00027945,2]
[357530972,1744131081751,-500.0,0.00027945,2]
[357530973,1744131081760,-528.9931132,0.00027945,2]
[357530974,1744131081771,-500.0,0.00027945,2]
[357530975,1744131081783,-500.0,0.00027945,2]
[357530976,1744131081793,-500.0,0.00027945,2]
[357530977,1744131081803,-621.25,0.00027945,2]
[357530978,1744131081812,-500.0,0.00027945,2]
[357530979,1744131081822,-500.0,0.00027945,2]
[357530980,1744131081832,-500.0,0.00027945,2]
[357530981,1744131081841,-500.0,0.00027945,2]
[357530982,1744131081850,-500.0,0.00027945,2]
[357530983,1744131081860,-550.14194127,0.00027945,2]
[357530984,1744131081870,-177.07501272,0.00027945,2]
[357530985,1744131081879,-500.0,0.00027945,2]
[357530986,1744131081888,-500.0,0.00027945,2]
[357530987,1744131081899,-1509.4,0.00027945,2]
[357530988,1744131081908,-768.18,0.00027945,2]
[357530989,1744131081918,-500.0,0.00027945,2]
[357530990,1744131081928,-500.0,0.00027945,2]
[357530991,1744131081938,-500.0,0.00027945,2]
[357530992,1744131081948,-500.0,0.00027945,2]
[357530993,1744131081957,-500.0,0.00027945,2]
[357530994,1744131081967,-500.0,0.00027945,2]
[357530995,1744131081976,-500.0,0.00027945,2]
[357530996,1744131081985,-500.0,0.00027945,2]
[357530997,1744131081994,-734.29,0.00027945,2]
[357530998,1744131082004,-500.0,0.00027945,2]
[357530999,1744131082014,-500.0,0.00027945,2]
[357531000,1744131082023,-535.48040144,0.00027945,2]
[357531001,1744131082036,-521.21379655,0.00027945,2]
[357531002,1744131082045,-500.0,0.00027945,2]
[357531003,1744131082055,-500.0,0.00027945,2]
[357531004,1744131082064,-579.35328673,0.00027945,2]
[357531005,1744131082077,-707.17,0.00027945,2]
[357531006,1744131082086,-500.0,0.00027945,2]
[357531007,1744131082096,-500.0,0.00027945,2]
[357531008,1744131082105,-500.0,0.00027945,2]
[357531009,1744131082116,-541.49728581,0.00027945,2]
[357531010,1744131082125,-500.0,0.00027945,2]
[357531011,1744131082136,-500.0,0.00027945,2]
[357531012,1744131082145,-509.41,0.00027945,2]
[357531013,1744131082156,-500.0,0.00027945,2]
[357531014,1744131082165,-500.0,0.00027945,2]
[357531015,1744131082174,-500.0,0.00027945,2]
[357531016,1744131082184,-500.0,0.00027945,2]
[357531017,1744131082194,-1220.84,0.00027945,2]
[357531018,1744131082203,-500.0,0.00027945,2]
[357531019,1744131082212,-500.0,0.00027945,2]
[357531020,1744131082222,-500.0,0.00027945,2]
[357531021,1744131082231,-538.21694239,0.00027945,2]
[357531022,1744131082240,-500.0,0.00027945,2]
[357531023,1744131082249,-500.0,0.00027945,2]
[357531024,1744131082259,-500.0,0.00027945,2]
[357531025,1744131082268,-500.0,0.00027945,2]
[357531026,1744131082279,-500.0,0.00027945,2]
[357531027,1744131082289,-551.51744552,0.00027945,2]
[357531028,1744131082298,-500.0,0.00027945,2]
[357531029,1744131082308,-500.0,0.00027945,2]
[357531030,1744131082318,-500.0,0.00027945,2]
[357531031,1744131082327,-500.0,0.00027945,2]
[357531032,1744131082337,-500.0,0.00027945,2]
[357531033,1744131082347,-500.0,0.00027945,2]
[357531034,1744131082357,-500.0,0.00027945,2]
[357531035,1744131082367,-322.24316468,0.00027945,2]
[357531036,1744131082378,-582.81747308,0.00027945,2]
[357531037,1744131082389,-500.0,0.00027945,2]
[357531038,1744131082399,-500.0,0.00027945,2]
[357531039,1744131082409,-488.88870689,0.00027945,2]
[357531040,1744131082418,-545.03,0.00027945,2]
[357531041,1744131082428,-500.0,0.00027945,2]
[357531042,1744131082439,-500.0,0.00027945,2]
[357531043,1744131082449,-500.0,0.00027945,2]
[357531044,1744131082459,-500.0,0.00027945,2]
[357531045,1744131082468,-500.0,0.00027945,2]
[357531046,1744131082478,-252.00759859,0.00027945,2]
[357531047,1744131082488,-500.0,0.00027945,2]
[357531048,1744131082498,-500.0,0.00027945,2]
[357531049,1744131082508,-500.0,0.00027945,2]
[357531050,1744131082518,-500.0,0.00027945,2]
[357531051,1744131082530,-500.0,0.00027945,2]
[357531052,1744131082540,-506.83954058,0.00027945,2]
[357531053,1744131082550,-1019.54,0.00027945,2]
[357531054,1744131082560,-1644.68,0.00027945,2]
[357531055,1744131082570,-538.21,0.00027945,2]
[357531056,1744131082580,-500.0,0.00027945,2]
[357531057,1744131082590,-155.17416795,0.00027945,2]
[357531058,1744131082600,-734.05,0.00027945,2]
[357531059,1744131082610,-500.0,0.00027945,2]
[357531060,1744131082620,-500.0,0.00027945,2]
[357531061,1744131082630,-500.0,0.00027945,2]
[357531062,1744131082641,-1425.74,0.00027945,2]
[357531063,1744131082651,-500.0,0.00027945,2]
[357531064,1744131082662,-500.0,0.00027945,2]
[357531065,1744131082672,-1187.81,0.00027945,2]
[357531066,1744131082681,-500.0,0.00027945,2]
[357531067,1744131082691,-500.0,0.00027945,2]
[357531068,1744131082701,-500.0,0.00027945,2]
[357531069,1744131082711,-500.0,0.00027945,2]
[357531070,1744131082721,-500.0,0.00027945,2]
[357531071,1744131082731,-500.0,0.00027945,2]
[357531072,1744131082741,-1273.1,0.00027945,2]
[357531073,1744131082751,-500.0,0.00027945,2]
[357531074,1744131082761,-500.0,0.00027945,2]
[357531075,1744131082772,-1048.09,0.00027945,2]
[357531076,1744131082787,-500.0,0.00027945,2]
[357531077,1744131082797,-531.84,0.00027945,2]
[357531078,1744131082807,-500.0,0.00027945,2]
[357531079,1744131082817,-500.0,0.00027945,2]
[357531080,1744131082826,-500.0,0.00027945,2]
[357531081,1744131082837,-561.42041816,0.00027945,2]
[357531082,1744131082847,-535.80557389,0.00027945,2]
[357531083,1744131082858,-1739.87,0.00027945,2]
[357531084,1744131082867,-500.0,0.00027945,2]
[357531085,1744131082877,-686.22,0.00027945,2]
[357531086,1744131082887,-643.82,0.00027945,2]
[357531087,1744131082897,-589.26,0.00027945,2]
[357531088,1744131082906,-530.29,0.00027945,2]
[357531089,1744131082916,-913.6,0.00027945,2]
[357531090,1744131082927,-500.0,0.00027945,2]
[357531091,1744131082937,-500.0,0.00027945,2]
[357531092,1744131082947,-541.35,0.00027945,2]
[357531093,1744131082956,-500.0,0.00027945,2]
[357531094,1744131082967,-500.0,0.00027945,2]
[357531095,1744131082976,-500.0,0.00027945,2]
[357531096,1744131082986,-524.83,0.00027945,2]
[357531097,1744131082996,-853.97,0.00027945,2]
[357531098,1744131083006,-500.0,0.00027945,2]
[357531099,1744131083016,-500.0,0.00027945,2]
[357531100,1744131083025,-500.0,0.00027945,2]
[357531101,1744131083038,-500.0,0.00027945,2]
[357531102,1744131083047,-500.0,0.00027945,2]
[357531103,1744131083057,-1206.08,0.00027945,2]
[357531104,1744131083067,-500.0,0.00027945,2]
[357531105,1744131083077,-500.0,0.00027945,2]
[357531106,1744131083090,-500.0,0.00027945,2]
[357531107,1744131083100,-562.70682878,0.00027945,2]
[357531108,1744131083111,-500.0,0.00027945,2]
[357531109,1744131083120,-839.17,0.00027945,2]
[357531110,1744131083130,-500.0,0.00027945,2]
[357531111,1744131083140,-500.0,0.00027945,2]
[357531112,1744131083149,-500.0,0.00027945,2]
[357531113,1744131083162,-500.0,0.00027945,2]
[357531114,1744131083172,-1079.35,0.00027945,2]
[357531115,1744131083182,-500.0,0.00027945,2]
[357531116,1744131083192,-500.0,0.00027945,2]
[357531117,1744131083202,-500.0,0.00027945,2]
[357531118,1744131083212,-353.62480625,0.00027945,2]
[357531119,1744131083222,-500.0,0.00027945,2]
[357531120,1744131083232,-500.0,0.00027945,2]
[357531121,1744131083242,-646.6,0.00027945,2]
[357531122,1744131083251,-500.0,0.00027945,2]
[357531123,1744131083261,-500.0,0.00027945,2]
[357531124,1744131083271,-1392.68,0.00027945,2]
[357531125,1744131083283,-1047.48,0.00027945,2]
[357531126,1744131083292,-1013.5,0.00027945,2]
[357531127,1744131083302,-500.0,0.00027945,2]
[357531128,1744131083313,-500.0,0.00027945,2]
[357531129,1744131083323,-500.0,0.00027945,2]
[357531130,1744131083333,-1138.94,0.00027945,2]
[357531131,1744131083342,-500.0,0.00027945,2]
[357531132,1744131083352,-500.0,0.00027945,2]
[357531133,1744131083363,-500.0,0.00027945,2]
[357531134,1744131083372,-500.0,0.00027945,2]
[357531135,1744131083383,-571.65,0.00027945,2]
[357531136,1744131083393,-500.0,0.00027945,2]
[357531137,1744131083403,-500.0,0.00027945,2]
[357531138,1744131083413,-500.0,0.00027945,2]
[357531139,1744131083424,-500.0,0.00027945,2]
[357531140,1744131083434,-985.93,0.00027945,2]
[357531141,1744131083444,-500.0,0.00027945,2]
[357531142,1744131083454,-500.0,0.00027945,2]
[357531143,1744131083464,-500.0,0.00027945,2]
[357531144,1744131083474,-500.0,0.00027945,2]
[357531145,1744131083484,-500.0,0.00027945,2]
[357531146,1744131083493,-500.0,0.00027945,2]
[357531147,1744131083503,-500.0,0.00027945,2]
[357531148,1744131083513,-500.0,0.00027945,2]
[357531149,1744131083523,-500.0,0.00027945,2]
[357531150,1744131083535,-893.75,0.00027945,2]
[357531151,1744131083545,-500.0,0.00027945,2]
[357531152,1744131083555,-520.05446826,0.00027945,2]
[357531153,1744131083565,-340.74942835,0.00027945,2]
[357531154,1744131083575,-322.42146412,0.00027945,2]
[357531155,1744131083585,-882.81,0.00027945,2]
[357531156,1744131083594,-635.65,0.00027945,2]
[357531157,1744131083604,-500.0,0.00027945,2]
[357531158,1744131083614,-500.0,0.00027945,2]
[357531159,1744131083624,-500.0,0.00027945,2]
[357531160,1744131083634,-554.86,0.00027945,2]
[357531161,1744131083643,-500.0,0.00027945,2]
[357531162,1744131083653,-1285.07,0.00027945,2]
[357531163,1744131083663,-500.0,0.00027945,2]
[357531164,1744131083672,-500.0,0.00027945,2]
[357531165,1744131083682,-815.01,0.00027945,2]
[357531166,1744131083692,-2250.35,0.00027945,2]
[357531167,1744131083702,-828.56,0.00027945,2]
[357531168,1744131083712,-500.0,0.00027945,2]
[357531169,1744131083722,-500.0,0.00027945,2]
[357531170,1744131083731,-553.89,0.00027945,2]
[357531171,1744131083741,-554.97,0.00027945,2]
[357531172,1744131083751,-571.07,0.00027945,2]
[357531173,1744131083762,-500.0,0.00027945,2]
[357531174,1744131083771,-500.0,0.00027945,2]
[357531175,1744131083784,-635.52,0.00027945,2]
[357531176,1744131083794,-409.24946843,0.00027945,2]
[357531177,1744131083804,-500.0,0.00027945,2]
[357531178,1744131083813,-500.0,0.00027945,2]
[357531179,1744131083823,-500.0,0.00027945,2]
[357531180,1744131083833,-729.33,0.00027945,2]
[357531181,1744131083843,-500.0,0.00027945,2]
[357531182,1744131083852,-1155.37,0.00027945,2]
[357531183,1744131083862,-500.0,0.00027945,2]
[357531184,1744131083872,-683.43,0.00027945,2]
[357531185,1744131083881,-500.0,0.00027945,2]
[357531186,1744131083891,-500.0,0.00027945,2]
[357531187,1744131083901,-659.52,0.00027945,2]
[357531188,1744131083910,-959.29,0.00027945,2]
[357531189,1744131083920,-500.0,0.00027945,2]
[357531190,1744131083930,-1042.58,0.00027945,2]
[357531191,1744131083939,-500.0,0.00027945,2]
[357531192,1744131083949,-500.0,0.00027945,2]
[357531193,1744131083959,-502.74,0.00027945,2]
[357531194,1744131083970,-500.0,0.00027945,2]
[357531195,1744131083979,-500.0,0.00027945,2]
[357531196,1744131083991,-500.0,0.00027945,2]
[357531197,1744131084000,-500.0,0.00027945,2]
[357531198,1744131084011,-500.0,0.00027945,2]
[357531199,1744131084021,-500.0,0.00027945,2]
[357531200,1744131084033,-500.0,0.00027945,2]
[357531201,1744131084042,-500.0,0.00027945,2]
[357531202,1744131084052,-651.5,0.00027945,2]
[357531203,1744131084062,-500.0,0.00027945,2]
[357531204,1744131084079,-500.0,0.00027945,2]
[357531205,1744131084090,-644.82254381,0.00027945,2]
[357531206,1744131084100,-500.0,0.00027945,2]
[357531207,1744131084111,-500.0,0.00027945,2]
[357531208,1744131084121,-594.23,0.00027945,2]
[357531209,1744131084131,-594.32,0.00027945,2]
[357531210,1744131084141,-500.0,0.00027945,2]
[357531211,1744131084151,-764.58,0.00027945,2]
[357531212,1744131084162,-626.3091589,0.00027945,2]
[357531213,1744131084173,-1066.53,0.00027945,2]
[357531214,1744131084182,-554.84,0.00027945,2]
[357531215,1744131084192,-500.0,0.00027945,2]
[357531216,1744131084202,-500.0,0.00027945,2]
[357531217,1744131084212,-784.39,0.00027945,2]
[357531218,1744131084222,-508.06,0.00027945,2]
[357531219,1744131084231,-513.92,0.00027945,2]
[357531220,1744131084241,-500.0,0.00027945,2]
[357531221,1744131084251,-500.0,0.00027945,2]
[357531222,1744131084260,-2000.0,0.00027945,2]
[357531223,1744131084270,-500.0,0.00027945,2]
[357531224,1744131084283,-568.34,0.00027945,2]
[357531225,1744131084294,-1465.9,0.00027945,2]
[357531226,1744131084304,-583.31,0.00027945,2]
[357531227,1744131084315,-500.0,0.00027945,2]
[357531228,1744131084325,-500.0,0.00027945,2]
[357531229,1744131084335,-285.86909537,0.00027945,2]
[357531230,1744131084345,-627.5,0.00027945,2]
[357531231,1744131084356,-222.37448119,0.00027945,2]
[357531232,1744131084366,-500.0,0.00027945,2]
[357531233,1744131084376,-500.0,0.00027945,2]
[357531234,1744131084386,-500.0,0.00027945,2]
[357531235,1744131084396,-500.0,0.00027945,2]
[357531236,1744131084406,-500.0,0.00027945,2]
[357531237,1744131084416,-291.18550389,0.00027945,2]
[357531238,1744131084427,-500.0,0.00027945,2]
[357531239,1744131084437,-500.0,0.00027945,2]
[357531240,1744131084447,-570.96,0.00027945,2]
[357531241,1744131084457,-500.0,0.00027945,2]
[357531242,1744131084468,-702.55,0.00027945,2]
[357531243,1744131084478,-500.0,0.00027945,2]
[357531244,1744131084488,-500.0,0.00027945,2]
[357531245,1744131084499,-183.9637021,0.00027945,2]
[357531246,1744131084729,-500.0,0.00027945,2]
[357531247,1744131084746,-500.0,0.00027945,2]
[357531248,1744131084756,-500.0,0.00027945,2]
[357531249,1744131084766,-627.68,0.00027945,2]
[357531250,1744131084775,-500.0,0.00027945,2]
[357531251,1744131084787,-500.0,0.00027945,2]
[357531252,1744131084796,-500.0,0.00027945,2]
[357531253,1744131084806,-537.7,0.00027945,2]
[357531254,1744131084815,-600.21,0.00027945,2]
[357531255,1744131084825,-717.93,0.00027945,2]
[357531256,1744131084834,-525.64,0.00027945,2]
[357531257,1744131084844,-683.46,0.00027945,2]
[357531258,1744131084854,-500.0,0.00027945,2]
[357531259,1744131084863,-500.0,0.00027945,2]
[357531260,1744131084873,-1354.7,0.00027945,2]
[357531261,1744131084882,-500.0,0.00027945,2]
[357531262,1744131084892,-500.0,0.00027945,2]
[357531263,1744131084901,-748.01,0.00027945,2]
[357531264,1744131084911,-500.0,0.00027945,2]
[357531265,1744131084920,-1010.61,0.00027945,2]
[357531266,1744131084930,-500.0,0.00027945,2]
[357531267,1744131084940,-500.0,0.00027945,2]
[357531268,1744131084949,-500.0,0.00027945,2]
[357531269,1744131084959,-564.61,0.00027945,2]
[357531270,1744131084969,-500.0,0.00027945,2]
[357531271,1744131084979,-500.0,0.00027945,2]
[357531272,1744131084988,-500.0,0.00027945,2]
[357531273,1744131084997,-500.0,0.00027945,2]
[357531274,1744131085007,-790.51,0.00027945,2]
[357531275,1744131085017,-500.0,0.00027945,2]
[357531276,1744131085026,-500.0,0.00027945,2]
[357531277,1744131085038,-500.0,0.00027945,2]
[357531278,1744131085047,-1476.66,0.00027945,2]
[357531279,1744131085057,-500.0,0.00027945,2]
[357531280,1744131085067,-655.26,0.00027945,2]
[357531281,1744131085077,-500.0,0.00027945,2]
[357531282,1744131085090,-737.15,0.00027945,2]
[357531283,1744131085099,-500.0,0.00027945,2]
[357531284,1744131085109,-539.63,0.00027945,2]
[357531285,1744131085119,-500.0,0.00027945,2]
[357531286,1744131085129,-500.0,0.00027945,2]
[357531287,1744131085139,-703.81,0.00027945,2]
[357531288,1744131085148,-677.2,0.00027945,2]
[357531289,1744131085158,-959.99,0.00027945,2]
[357531290,1744131085168,-704.21,0.00027945,2]
[357531291,1744131085178,-641.96,0.00027945,2]
[357531292,1744131085187,-505.48,0.00027945,2]
[357531293,1744131085197,-932.66,0.00027945,2]
[357531294,1744131085207,-524.32392119,0.00027945,2]
[357531295,1744131085216,-543.9817597,0.00027945,2]
[357531296,1744131085226,-812.56,0.00027945,2]
[357531297,1744131085236,-1465.75,0.00027945,2]
[357531298,1744131085246,-580.15,0.00027945,2]
[357531299,1744131085256,-888.6,0.00027945,2]
[357531300,1744131085265,-545.23,0.00027945,2]
[357531301,1744131085275,-889.0,0.00027945,2]
[357531302,1744131085288,-2260.02,0.00027945,2]
[357531303,1744131085298,-794.37,0.00027945,2]
[357531304,1744131085307,-500.0,0.00027945,2]
[357531305,1744131085317,-613.35,0.00027945,2]
[357531306,1744131085327,-500.0,0.00027945,2]
[357531307,1744131085336,-567.81,0.00027945,2]
[357531308,1744131085346,-808.98,0.00027945,2]
[357531309,1744131085356,-845.46,0.00027945,2]
[357531310,1744131085365,-500.0,0.00027945,2]
[357531311,1744131085375,-500.0,0.00027945,2]
[357531312,1744131085385,-593.3,0.00027945,2]
[357531313,1744131085394,-500.0,0.00027945,2]
[357531314,1744131085403,-581.16,0.00027945,2]
[357531315,1744131085412,-500.0,0.00027945,2]
[357531316,1744131085423,-500.0,0.00027945,2]
[357531317,1744131085433,-878.06,0.00027945,2]
[357531318,1744131085443,-500.0,0.00027945,2]
[357531319,1744131085453,-1056.72,0.00027945,2]
[357531320,1744131085463,-500.0,0.00027945,2]
[357531321,1744131085472,-1037.85,0.00027945,2]